fUST/lending_fUST_20251129
["ID","MTS","AMOUNT","RATE_DAILY","PERIOD"]
[395086909,1764414671257,-10000.01,0.00011335,2]
[395086910,1764414671459,-10000.01,0.00011335,2]
[395086911,1764414671705,-10000.01,0.00011335,2]
[395086912,1764414671906,-10000.01,0.00011335,2]
[395086913,1764414672111,-10000.01,0.00011335,2]
[395086914,1764414672325,-10000.01,0.00011335,2]
[395086915,1764414672530,-10000.01,0.00011335,2]
[395086916,1764414672855,-10000.01,0.00011335,2]
[395086917,1764414673138,-10000.01,0.00011335,2]
[395086918,1764414673904,-10000.01,0.00011335,2]
[395086919,1764414674189,-10000.01,0.00011335,2]
[395086920,1764414674463,-10000.01,0.00011335,2]
[395086921,1764414674941,-10000.01,0.00011335,2]
[395086922,1764414675161,-10000.01,0.00011335,2]
[395086923,1764414675366,-10000.01,0.00011335,2]
[395086924,1764414675555,-10000.01,0.00011335,2]
[395086925,1764414675780,-10000.01,0.00011335,2]
[395086926,1764414676024,-10000.01,0.00011335,2]
[395086927,1764414676217,-10000.01,0.00011335,2]
[395086928,1764414676866,-10000.01,0.00011335,2]
[395086929,1764414677196,-10000.01,0.00011335,2]
[395086930,1764414677399,-10000.01,0.00011335,2]
[395086931,1764414677666,-10000.01,0.00011335,2]
[395086932,1764414677786,-10000.01,0.00011335,2]
[395086933,1764414680107,-10000.01,0.00011335,2]
[395086934,1764414680265,-10000.01,0.00011335,2]
[395086935,1764414680627,-10000.01,0.00011335,2]
[395086936,1764414680934,-10000.01,0.00011335,2]
[395086937,1764414681241,-10000.01,0.00011335,2]
[395086938,1764414703176,158.116,0.00011108,2]
[395086939,1764414722519,708.64,1e-05,2]
[395086940,1764414722882,708.64,1e-05,2]
[395086941,1764414723186,688.24513593,1.1e-05,2]
[395086942,1764414723208,20.39486407,1.1e-05,2]
[395086943,1764414723500,708.64,1.1e-05,2]
[395086944,1764414723859,708.64,1.1e-05,2]
[395086945,1764414724142,708.64,1.1e-05,2]
[395086946,1764414724443,155.20422669,1.2e-05,2]
[395086947,1764414724465,553.43577331,1.2e-05,2]
[395086949,1764414724772,708.64,1.2e-05,2]
[395086954,1764414725078,708.64,1.2e-05,2]
[395086959,1764414725392,361.94071081,1.2e-05,2]
[395086960,1764414725412,346.69928919,1.2e-05,2]
[395086963,1764414725694,708.64,1.3e-05,2]
[395086964,1764414726011,708.64,1.3e-05,2]
[395086965,1764414726658,502.42748543,1.3e-05,2]
[395086966,1764414726678,206.21251457,1.3e-05,2]
[395086967,1764414726743,708.64,1.3e-05,2]
[395086968,1764414726981,708.64,1.4e-05,2]
[395086969,1764414727293,705.86044498,1.4e-05,2]
[395086970,1764414727324,2.77955502,1.4e-05,2]
[395086971,1764414727978,693.51834162,1.4e-05,2]
[395086972,1764414728006,15.12165838,1.4e-05,2]
[395086973,1764414728289,708.64,1.4e-05,2]
[395086974,1764414728602,708.64,1.5e-05,2]
[395086975,1764414728914,708.64,1.5e-05,2]
[395086976,1764414729238,708.64,1.5e-05,2]
[395086977,1764414729554,708.64,1.5e-05,2]
[395086978,1764414729866,708.64,1.6e-05,2]
[395086979,1764414730189,708.64,1.6e-05,2]
[395086980,1764414730573,708.64,1.6e-05,2]
[395086981,1764414730890,708.64,1.6e-05,2]
[395086982,1764414731209,708.64,1.7e-05,2]
[395086983,1764414731609,708.64,1.7e-05,2]
[395086984,1764414732020,708.64,1.7e-05,2]
[395086985,1764414732333,708.64,1.7e-05,2]
[395086986,1764414732661,708.64,1.8e-05,2]
[395086987,1764414733082,708.64,1.8e-05,2]
[395086988,1764414733414,708.64,1.8e-05,2]
[395086989,1764414733727,708.64,1.8e-05,2]
[395086990,1764414734080,708.64,1.9e-05,2]
[395086991,1764414734384,708.64,1.9e-05,2]
[395086992,1764414734725,708.64,1.9e-05,2]
[395086993,1764414735032,708.64,1.9e-05,2]
[395086994,1764414735345,708.64,2e-05,2]
[395086995,1764414735660,394.79834162,2e-05,2]
[395086996,1764414735688,313.84165838,2e-05,2]
[395086997,1764414736005,708.64,2e-05,2]
[395086998,1764414736406,708.64,2e-05,2]
[395086999,1764414736913,708.64,2.1e-05,2]
[395087000,1764414737097,708.64,2.1e-05,2]
[395087001,1764414737436,708.64,2.1e-05,2]
[395087002,1764414738142,708.64,2.1e-05,2]
[395087003,1764414738456,708.64,2.2e-05,2]
[395087004,1764414738780,708.64,2.2e-05,2]
[395087005,1764414739092,708.64,2.2e-05,2]
[395087006,1764414739992,708.53,1e-05,2]
[395087026,1764414782436,163.61,1e-05,2]
[395087027,1764414782781,163.61,1.2e-05,2]
[395087029,1764414783236,163.61,1.4e-05,2]
[395087030,1764414783563,163.61,1.5e-05,2]
[395087031,1764414783886,163.61,1.7e-05,2]
[395087032,1764414784204,163.61,1.9e-05,2]
[395087033,1764414784533,163.61,2.1e-05,2]
[395087034,1764414784896,163.61,2.3e-05,2]
[395087086,1764414932548,210.39980166,8.643e-05,2]
[395087088,1764414948622,210.39980166,8.643e-05,2]
[395087108,1764415625085,-150.0,8.686e-05,2]
[395087109,1764415625109,-150.0,8.885e-05,2]
[395087110,1764415625131,-212.93819945,8.907e-05,2]
[395087116,1764415747126,-62.45438939,8.907e-05,2]
[395087117,1764415747148,-150.0,9.009e-05,2]
[395087118,1764415747167,-177.19511628,9.111e-05,2]
[395087119,1764415747185,-348.69067584,0.00010589,3]
[395087120,1764415747204,-275.39258884,0.00010971,2]
[395087121,1764415747224,-177.0,0.00011009,2]
[395087122,1764415749113,-383.46669244,0.00011135,2]
[395087123,1764415749135,-396.7820932,0.00011141,2]
[395087124,1764415749155,-383.46669241,0.00011146,2]
[395087125,1764415749174,-383.46669241,0.00011157,2]
[395087126,1764415749194,-300.0,0.00011166,2]
[395087127,1764415749216,-5142.6678393,0.00011167,2]
[395087128,1764415759133,-9320.70551963,0.00011167,2]
[395087129,1764415759153,-383.46669241,0.00011167,2]
[395087130,1764415759172,-383.46669241,0.00011178,2]
[395087131,1764415759192,-1200.0,0.00011184,2]
[395087132,1764415759214,-301.7198362,0.000112,2]
[395087133,1764415759237,-151.0,0.000112,2]
[395087134,1764415759259,-500.0,0.00011227,2]
[395087135,1764415759279,-500.0,0.00011227,2]
[395087136,1764415759303,-500.0,0.00011227,2]
[395087137,1764415759323,-500.0,0.00011227,2]
[395087138,1764415759344,-500.0,0.00011227,2]
[395087139,1764415759365,-500.0,0.00011227,2]
[395087140,1764415759386,-500.0,0.00011227,2]
[395087141,1764415759407,-461.09393961,0.00011227,2]
[395087142,1764415759427,-500.0,0.00011227,2]
[395087143,1764415759447,-138.42359593,0.00011227,2]
[395087144,1764415770080,-458.41771282,0.00011055,2]
[395087145,1764415770101,-361.57640407,0.00011227,2]
[395087146,1764415770123,-500.0,0.00011227,2]
[395087147,1764415770143,-500.0,0.00011227,2]
[395087148,1764415770163,-449.85330832,0.00011227,2]
[395087151,1764415818767,2305.1880334,0.00011133,2]
[395087241,1764415846264,-236.5813651,0.00011132,2]
[395087242,1764415846273,-500.0,0.00011132,2]
[395087243,1764415846282,-500.0,0.00011132,2]
[395087244,1764415846291,-500.0,0.00011132,2]
[395087245,1764415846300,-389.15282169,0.00011132,2]
[395087246,1764415846310,-500.0,0.00011132,2]
[395087247,1764415846320,-500.0,0.00011132,2]
[395087248,1764415846329,-500.0,0.00011132,2]
[395087249,1764415846338,-500.0,0.00011132,2]
[395087250,1764415846347,-500.0,0.00011132,2]
[395087251,1764415846356,-500.0,0.00011132,2]
[395087252,1764415846365,-27043.37923831,0.00011133,2]
[395087253,1764415846610,-860651.43272829,0.00011133,2]
[395087254,1764415846619,-300.0,0.00011226,2]
[395087255,1764415846628,-300.0,0.00011226,2]
[395087256,1764415846638,-300.0,0.00011226,2]
[395087257,1764415846647,-1200.0,0.00011226,2]
[395087258,1764415846657,-300.0,0.00011226,2]
[395087259,1764415846667,-194.72792766,0.00011228,2]
[395087260,1764415846676,-4890.80257724,0.00011233,2]
[395087266,1764415941690,242.46709763,0.0001102,2]
[395087267,1764415941837,204.44590785,8.907e-05,2]
[395087268,1764415942229,204.44590785,0.00010096,2]
[395087269,1764415949436,300.0,0.0001102,2]
[395087270,1764415953618,387.4284412,8.907e-05,2]
[395087293,1764416125208,150.0,0.0002,30]
[395087301,1764416550823,526.92148606,8.643e-05,2]
[395087302,1764416573310,526.92148606,8.643e-05,2]
[395087303,1764416594987,456.22394107,8.643e-05,2]
[395087311,1764416728884,526.92148606,8.643e-05,2]
[395087312,1764416731104,-526.92148606,8.73e-05,2]
[395087313,1764416731139,-169.71061154,8.774e-05,2]
[395087314,1764416731161,-526.92148606,8.907e-05,2]
[395087315,1764416731181,-231.98246799,9.696e-05,2]
[395087329,1764416832080,-257.8604864,9.503e-05,2]
[395087330,1764416832099,-83.83677219,9.599e-05,2]
[395087331,1764416848136,-218.72274953,9.599e-05,2]
[395087332,1764416848155,-302.55952172,9.696e-05,2]
[395087333,1764416848174,-310.3547728,9.753e-05,2]
[395087334,1764416848192,-137.35663593,9.88e-05,2]
[395087335,1764416849077,-389.56485013,9.88e-05,2]
[395087336,1764416849097,-417.61205552,0.0001023,2]
[395087337,1764416849117,-742.42143203,0.0001023,2]
[395087338,1764416849136,-192.1414241,0.00010456,2]
[395087339,1764416849157,-416.26311382,0.00010589,3]
[395087340,1764416851070,-224.94138296,9.718e-05,2]
[395087342,1764416948106,-7.06531455,9.718e-05,2]
[395087343,1764416948128,-1200.0,0.00010766,2]
[395087344,1764416948149,-300.0,0.00010766,2]
[395087345,1764416948170,-1200.0,0.00010766,2]
[395087346,1764416948192,-300.0,0.00010767,2]
[395087347,1764416948217,-300.0,0.00010767,2]
[395087348,1764416948238,-300.0,0.00010767,2]
[395087349,1764416948257,-280.92016237,0.00010768,2]
[395087350,1764416948280,-505.65629226,0.00010768,2]
[395087351,1764416948300,-365.55054034,0.00010768,2]
[395087353,1764416954070,-533.39397924,0.00010768,2]
[395087354,1764416954090,-6427.67817288,0.00010774,2]
[395087355,1764416954109,-200.25852162,0.00010774,2]
[395087356,1764416955074,-526.92148606,0.00010853,2]
[395087357,1764416955094,-657.78396626,0.00010871,2]
[395087358,1764416955112,-185.95555613,0.00010931,2]
[395087359,1764416956528,279.11526631,0.00010744,2]
[395087360,1764416957922,166.31639931,0.00010862,2]
[395087361,1764416959091,-217.4279589,0.0001103,2]
[395087362,1764416959111,-500.0,0.0001103,2]
[395087363,1764416959131,-284.74192344,0.0001103,2]
[395087364,1764416959155,-417.79447739,0.0001103,2]
[395087365,1764416959174,-500.0,0.0001103,2]
[395087366,1764416959193,-588.54767487,0.0001103,2]
[395087367,1764416959213,-500.0,0.0001103,2]
[395087368,1764416959235,-500.0,0.0001103,2]
[395087369,1764416959255,-500.0,0.0001103,2]
[395087370,1764416959274,-500.0,0.0001103,2]
[395087371,1764416959294,-531.19963889,0.0001103,2]
[395087372,1764416959313,-500.0,0.0001103,2]
[395087373,1764416959332,-500.0,0.0001103,2]
[395087374,1764416959353,-500.0,0.0001103,2]
[395087375,1764416959376,-500.0,0.0001103,2]
[395087376,1764416959396,-531.19963889,0.0001103,2]
[395087377,1764416959415,-500.0,0.0001103,2]
[395087378,1764416959434,-531.19963889,0.0001103,2]
[395087379,1764416959454,-500.0,0.0001103,2]
[395087380,1764416959475,-500.0,0.0001103,2]
[395087381,1764416959494,-369.28413701,0.0001103,2]
[395087382,1764416959513,-531.19963889,0.0001103,2]
[395087383,1764416959532,-531.19963889,0.0001103,2]
[395087384,1764416959551,-500.0,0.0001103,2]
[395087385,1764416959570,-253.51372729,0.0001103,2]
[395087386,1764416959589,-531.19963889,0.0001103,2]
[395087387,1764416959608,-500.0,0.0001103,2]
[395087389,1764416959626,-531.19963889,0.0001103,2]
[395087390,1764416959644,-500.0,0.0001103,2]
[395087391,1764416959662,-500.0,0.0001103,2]
[395087392,1764416959682,-531.19963889,0.0001103,2]
[395087393,1764416959700,-500.0,0.0001103,2]
[395087394,1764416959720,-500.0,0.0001103,2]
[395087395,1764416959739,-531.19963889,0.0001103,2]
[395087396,1764416959759,-500.0,0.0001103,2]
[395087397,1764416959784,-531.19963889,0.0001103,2]
[395087398,1764416959803,-531.19963889,0.0001103,2]
[395087399,1764416959822,-500.0,0.0001103,2]
[395087400,1764416959844,-500.0,0.0001103,2]
[395087401,1764416959863,-531.19963889,0.0001103,2]
[395087402,1764416959883,-500.0,0.0001103,2]
[395087403,1764416959903,-531.19963889,0.0001103,2]
[395087404,1764416959922,-500.0,0.0001103,2]
[395087405,1764416959942,-521.84853021,0.0001103,2]
[395087406,1764416959962,-531.19963889,0.0001103,2]
[395087407,1764416959980,-500.0,0.0001103,2]
[395087408,1764416960000,-531.19963889,0.0001103,2]
[395087409,1764416960020,-531.19963889,0.0001103,2]
[395087410,1764416960040,-531.19963889,0.0001103,2]
[395087411,1764416960059,-500.0,0.0001103,2]
[395087412,1764416960079,-531.19963889,0.0001103,2]
[395087413,1764416960098,-500.0,0.0001103,2]
[395087414,1764416960118,-531.19963889,0.0001103,2]
[395087415,1764416960138,-500.0,0.0001103,2]
[395087416,1764416960158,-531.19963889,0.0001103,2]
[395087417,1764416960177,-531.19963889,0.0001103,2]
[395087418,1764416960195,-531.19963889,0.0001103,2]
[395087419,1764416960215,-531.19963889,0.0001103,2]
[395087420,1764416960235,-531.19963889,0.0001103,2]
[395087421,1764416960254,-531.19963889,0.0001103,2]
[395087422,1764416960274,-531.19963889,0.0001103,2]
[395087423,1764416960292,-531.19963889,0.0001103,2]
[395087424,1764416960311,-531.19963889,0.0001103,2]
[395087425,1764416960334,-531.19963889,0.0001103,2]
[395087426,1764416960354,-531.19963889,0.0001103,2]
[395087427,1764416960373,-531.19963889,0.0001103,2]
[395087428,1764416960392,-531.19963889,0.0001103,2]
[395087429,1764416960412,-531.19963889,0.0001103,2]
[395087430,1764416960431,-531.19963889,0.0001103,2]
[395087431,1764416960450,-531.19963889,0.0001103,2]
[395087432,1764416960469,-531.19963889,0.0001103,2]
[395087433,1764416960489,-531.19963889,0.0001103,2]
[395087434,1764416960508,-531.19963889,0.0001103,2]
[395087435,1764416960528,-531.19963889,0.0001103,2]
[395087436,1764416960548,-531.19963889,0.0001103,2]
[395087437,1764416960568,-531.19963889,0.0001103,2]
[395087438,1764416960587,-531.19963889,0.0001103,2]
[395087439,1764416960607,-531.19963889,0.0001103,2]
[395087440,1764416960807,-531.19963889,0.0001103,2]
[395087441,1764416960827,-531.19963889,0.0001103,2]
[395087442,1764416960848,-531.19963889,0.0001103,2]
[395087443,1764416960869,-531.19963889,0.0001103,2]
[395087444,1764416960888,-531.19963889,0.0001103,2]
[395087445,1764416960908,-531.19963889,0.0001103,2]
[395087446,1764416960928,-531.19963889,0.0001103,2]
[395087447,1764416960948,-531.19963889,0.0001103,2]
[395087448,1764416960968,-531.19963889,0.0001103,2]
[395087449,1764416960987,-531.19963889,0.0001103,2]
[395087450,1764416961008,-531.19963889,0.0001103,2]
[395087451,1764416961028,-500.0,0.0001103,2]
[395087452,1764416961048,-242.66224724,0.0001103,2]
[395087453,1764416961067,-500.0,0.0001103,2]
[395087454,1764416961087,-500.0,0.0001103,2]
[395087455,1764416961106,-500.0,0.0001103,2]
[395087456,1764416961125,-500.0,0.0001103,2]
[395087457,1764416961144,-521.54146363,0.0001103,2]
[395087458,1764416961163,-521.54146363,0.0001103,2]
[395087459,1764416961182,-521.54146363,0.0001103,2]
[395087460,1764416961202,-521.54146363,0.0001103,2]
[395087461,1764416961221,-521.54146363,0.0001103,2]
[395087462,1764416961240,-521.54146363,0.0001103,2]
[395087463,1764416961259,-521.54146363,0.0001103,2]
[395087464,1764416961279,-521.54146363,0.0001103,2]
[395087465,1764416961298,-521.54146363,0.0001103,2]
[395087466,1764416961318,-521.54146363,0.0001103,2]
[395087467,1764416961337,-521.54146363,0.0001103,2]
[395087468,1764416961357,-521.54146363,0.0001103,2]
[395087469,1764416961375,-521.54146363,0.0001103,2]
[395087470,1764416961395,-521.54146363,0.0001103,2]
[395087471,1764416961413,-521.54146363,0.0001103,2]
[395087472,1764416961432,-521.54146363,0.0001103,2]
[395087473,1764416961450,-521.54146363,0.0001103,2]
[395087474,1764416961469,-521.54146363,0.0001103,2]
[395087475,1764416961488,-521.54146363,0.0001103,2]
[395087476,1764416961509,-500.0,0.0001103,2]
[395087477,1764416961540,-521.54146363,0.0001103,2]
[395087478,1764416961564,-500.0,0.0001103,2]
[395087479,1764416961586,-521.54146363,0.0001103,2]
[395087480,1764416961606,-500.0,0.0001103,2]
[395087481,1764416961627,-500.0,0.0001103,2]
[395087482,1764416961648,-200.97326822,0.0001103,2]
[395087483,1764416961936,-320.56819541,0.0001103,2]
[395087484,1764416961956,-500.0,0.0001103,2]
[395087485,1764416961979,-521.54146363,0.0001103,2]
[395087486,1764416961998,-500.0,0.0001103,2]
[395087487,1764416962018,-521.54146363,0.0001103,2]
[395087488,1764416962037,-500.0,0.0001103,2]
[395087489,1764416962058,-500.0,0.0001103,2]
[395087490,1764416962078,-521.54146363,0.0001103,2]
[395087491,1764416962097,-500.0,0.0001103,2]
[395087492,1764416962117,-521.54146363,0.0001103,2]
[395087493,1764416962137,-500.0,0.0001103,2]
[395087494,1764416962156,-500.0,0.0001103,2]
[395087495,1764416962177,-521.54146363,0.0001103,2]
[395087496,1764416962198,-500.0,0.0001103,2]
[395087497,1764416962219,-521.54146363,0.0001103,2]
[395087498,1764416962240,-500.0,0.0001103,2]
[395087499,1764416962260,-500.0,0.0001103,2]
[395087500,1764416962280,-521.54146363,0.0001103,2]
[395087501,1764416962299,-521.54146363,0.0001103,2]
[395087502,1764416962318,-500.0,0.0001103,2]
[395087503,1764416962342,-259.5876606,0.0001103,2]
[395087504,1764416962362,-500.0,0.0001103,2]
[395087505,1764416962382,-521.54146363,0.0001103,2]
[395087506,1764416962403,-521.54146363,0.0001103,2]
[395087507,1764416962423,-521.54146355,0.0001103,2]
[395087508,1764416962442,-774.21113858,0.00011031,2]
[395087509,1764416962461,-153.65917899,0.00011033,2]
[395087510,1764416962480,-248.03440644,0.00011033,2]
[395087511,1764416962499,-500.0,0.00011033,2]
[395087512,1764416962519,-500.0,0.00011033,2]
[395087513,1764416962538,-500.0,0.00011033,2]
[395087514,1764416962558,-500.0,0.00011034,2]
[395087515,1764416962577,-163.626,0.00011034,2]
[395087516,1764416962596,-151.0,0.00011034,2]
[395087517,1764416962615,-151.0,0.00011034,2]
[395087518,1764416962634,-151.0,0.00011034,2]
[395087519,1764416962653,-151.0,0.00011034,2]
[395087520,1764416962674,-500.0,0.00011034,2]
[395087521,1764416962692,-25914.83775333,0.00011035,2]
[395087522,1764416962714,-151.0,0.000111,2]
[395087523,1764416962733,-151.0,0.000111,2]
[395087524,1764416962752,-151.0,0.000111,2]
[395087525,1764416962774,-1000.0,0.00011126,2]
[395087526,1764416962793,-1000.0,0.00011126,2]
[395087527,1764416962814,-1000.0,0.00011126,2]
[395087528,1764416962833,-1000.0,0.00011126,2]
[395087529,1764416962855,-1000.0,0.00011126,2]
[395087530,1764416962875,-1000.0,0.00011126,2]
[395087531,1764416962893,-1000.0,0.00011126,2]
[395087532,1764416962912,-1000.0,0.00011126,2]
[395087533,1764416962936,-881.98693526,0.00011126,2]
[395087534,1764416962958,-194.72792766,0.00011126,2]
[395087535,1764416962977,-300.0,0.00011126,2]
[395087536,1764416962995,-657.78,0.00011128,2]
[395087537,1764416963015,-167.06,0.00011128,2]
[395087538,1764416963034,-167.06,0.00011128,2]
[395087539,1764416963054,-167.06,0.00011128,2]
[395087540,1764416963074,-167.06,0.00011128,2]
[395087541,1764416963094,-167.06,0.00011128,2]
[395087542,1764416963114,-167.06,0.00011128,2]
[395087543,1764416963133,-167.07,0.00011128,2]
[395087544,1764416963152,-500.0,0.00011132,2]
[395087545,1764416963172,-500.0,0.00011132,2]
[395087546,1764416963192,-500.0,0.00011132,2]
[395087547,1764416963211,-151.0,0.00011132,2]
[395087548,1764416963230,-500.0,0.00011132,2]
[395087549,1764416963250,-151.0,0.00011132,2]
[395087550,1764416963270,-500.0,0.00011132,2]
[395087551,1764416963297,-151.0,0.00011132,2]
[395087552,1764416963316,-151.0,0.00011132,2]
[395087553,1764416963348,-68447.7781609,0.00011133,2]
[395087562,1764416982573,1828.03197714,0.00010931,2]
[395087563,1764416996536,179.78060374,9.111e-05,2]
[395087567,1764417032413,-199.31934641,0.0001093,2]
[395087568,1764417032423,-152.19957123,0.0001093,2]
[395087569,1764417032432,-300.0,0.0001093,2]
[395087570,1764417032441,-300.0,0.0001093,2]
[395087571,1764417032449,-300.0,0.0001093,2]
[395087572,1764417032458,-1200.0,0.0001093,2]
[395087573,1764417032467,-109748.58306561,0.00010931,2]
[395087604,1764417038602,-446.87205891,0.0001093,2]
[395087606,1764417038611,-194.83485859,0.0001093,2]
[395087620,1764417038840,-304.74024969,0.0001093,2]
[395087622,1764417038850,-53606.15401688,0.00010931,2]
[395087629,1764417040576,-915.52853572,0.00010931,2]
[395087630,1764417040587,-12154.13833105,0.00010931,2]
[395087636,1764417043347,-8992.29266894,0.00010931,2]
[395087637,1764417043454,-508.54553003,0.00010931,2]
[395087638,1764417043466,-8237.35533875,0.00010931,2]
[395087639,1764417043579,-4873.67284161,0.00010931,2]
[395087640,1764417043591,-522637.24596752,0.00010931,2]
[395087641,1764417043602,-35431.27338991,0.00010931,2]
[395087660,1764417072361,150.0,0.00010821,2]
[395087673,1764417420111,210.48740796,0.0002,30]
[395087688,1764418029110,-224.0,8.907e-05,2]
[395087689,1764418029131,-407.42598626,8.907e-05,2]
[395087690,1764418031100,-368.41830385,8.907e-05,2]
[395087691,1764418031120,-167.98490089,9.042e-05,2]
[395087692,1764418031139,-775.84429011,9.569e-05,2]
[395087693,1764418031159,-297.4953413,0.00010231,2]
[395087694,1764418031187,-478.34894881,0.00010231,2]
[395087695,1764418031205,-185.98055851,0.00010793,2]
[395087696,1764418031417,-300.0,0.00010829,2]
[395087697,1764418031437,-52.88830749,0.0001083,2]
[395087702,1764418039078,-150.97000285,0.0001083,2]
[395087703,1764418039099,-500.0,0.0001083,2]
[395087704,1764418039119,-500.0,0.0001083,2]
[395087705,1764418039137,-500.0,0.0001083,2]
[395087706,1764418039156,-254.36981389,0.0001083,2]
[395087707,1764418039174,-440.98838078,0.0001083,2]
[395087709,1764418043122,-59.01161922,0.0001083,2]
[395087710,1764418043144,-104.82065053,0.0001083,2]
[395087711,1764418051073,-545.44985824,0.0001083,2]
[395087712,1764418051094,-500.0,0.0001083,2]
[395087713,1764418051114,-500.0,0.0001083,2]
[395087714,1764418051139,-133.45231185,0.0001083,2]
[395087717,1764418149076,-270.04355358,0.00010589,3]
[395087718,1764418149098,-326.39819584,0.00010768,2]
[395087719,1764418149118,-287.68677635,0.0001083,2]
[395087720,1764418149138,-500.0,0.0001083,2]
[395087721,1764418149158,-1200.0,0.0001083,2]
[395087722,1764418149178,-300.0,0.0001083,2]
[395087723,1764418149202,-4370.98739591,0.00010831,2]
[395087724,1764418158089,-22009.28452301,0.00010831,2]
[395087725,1764418158123,-212685.02899628,0.00010831,2]
[395087726,1764418164088,-34579.25573056,0.00010831,2]
[395087727,1764418166103,-10407.45916349,0.00010831,2]
[395087731,1764418232434,-300.0,0.0001083,2]
[395087732,1764418232443,-212.35140376,0.0001083,2]
[395087735,1764418232567,-87.64859624,0.0001083,2]
[395087736,1764418232576,-682.80829447,0.0001083,2]
[395087785,1764418238788,-517.19170553,0.0001083,2]
[395087786,1764418238798,-3190.21820752,0.00010831,2]
[395087799,1764418261207,-8025.23512222,0.00010831,2]
[395087800,1764418261380,-10000.01,0.00010831,2]
[395087801,1764418261541,-10000.01,0.00010831,2]
[395087802,1764418261694,-10000.01,0.00010831,2]
[395087803,1764418261834,-10000.01,0.00010831,2]
[395087804,1764418261984,-10000.01,0.00010831,2]
[395087805,1764418262581,193.06,1e-05,2]
[395087806,1764418262904,193.06,1e-05,2]
[395087807,1764418263317,193.06,1.1e-05,2]
[395087808,1764418263746,193.06,1.1e-05,2]
[395087809,1764418263938,-300.0,0.0001083,2]
[395087810,1764418263971,-9400.01,0.00010831,2]
[395087811,1764418263998,193.06,1.1e-05,2]
[395087812,1764418264741,193.06,1.1e-05,2]
[395087813,1764418265063,193.06,1.2e-05,2]
[395087814,1764418265382,193.06,1.2e-05,2]
[395087815,1764418265703,193.06,1.2e-05,2]
[395087816,1764418266048,193.06,1.2e-05,2]
[395087817,1764418266370,193.06,1.3e-05,2]
[395087818,1764418266783,138.39700827,1.3e-05,2]
[395087819,1764418266815,54.66299173,1.3e-05,2]
[395087820,1764418267127,193.06,1.3e-05,2]
[395087821,1764418267484,193.06,1.3e-05,2]
[395087822,1764418267810,193.06,1.4e-05,2]
[395087823,1764418268134,193.06,1.4e-05,2]
[395087824,1764418268479,193.06,1.4e-05,2]
[395087825,1764418268804,193.06,1.4e-05,2]
[395087826,1764418269189,193.06,1.5e-05,2]
[395087827,1764418269592,193.06,1.5e-05,2]
[395087828,1764418269895,193.06,1.5e-05,2]
[395087829,1764418270458,193.06,1.5e-05,2]
[395087830,1764418270568,193.06,1.6e-05,2]
[395087831,1764418270884,193.06,1.6e-05,2]
[395087832,1764418271218,193.06,1.6e-05,2]
[395087833,1764418271620,193.06,1.6e-05,2]
[395087834,1764418271928,193.06,1.7e-05,2]
[395087835,1764418272259,193.06,1.7e-05,2]
[395087836,1764418272633,193.06,1.7e-05,2]
[395087837,1764418272949,193.06,1.7e-05,2]
[395087838,1764418273190,-621.17187314,8.907e-05,2]
[395087839,1764418273218,-621.17187314,9.96e-05,2]
[395087840,1764418273282,-7515.32250744,0.00010831,2]
[395087841,1764418273318,193.06,1.8e-05,2]
[395087842,1764418273472,-10000.01,0.00010831,2]
[395087843,1764418273533,-10000.01,0.00010831,2]
[395087844,1764418273614,193.06,1.8e-05,2]
[395087845,1764418273673,-10000.01,0.00010831,2]
[395087846,1764418273796,-10000.01,0.00010831,2]